bitfinex/quotes_SOLUSD_20250326
["timestamp","ask_amount","ask_price","bid_price","bid_amount"]
[1742952348735,38.63711895,144.39,144.38,0.063]
[1742952349528,24.77284886,144.38,144.3,6.9596]
[1742952349717,13.06187009,144.33,144.3,6.9596]
[1742952351041,20.46005355,144.33,144.3,6.9596]
[1742952351934,39.10970241,144.31,144.3,0.03]
[1742952354456,39.10970241,144.34,144.3,0.03]
[1742952354628,20.46005355,144.33,144.3,0.03]
[1742952354823,20.46005355,144.31,144.3,0.03]
[1742952355423,20.46005355,144.32,144.3,0.03]
[1742952356149,39.39402555,144.31,144.3,0.03]
[1742952356321,39.10970241,144.31,144.3,0.03]
[1742952359323,20.46005355,144.31,144.3,0.03]
[1742952359519,39.10970241,144.33,144.3,0.03]
[1742952360265,20.46005355,144.32,144.3,0.03]
[1742952361147,20.46005355,144.31,144.3,0.03]
[1742952362048,39.10970241,144.31,144.3,0.03]
[1742952363735,46.03920241,144.31,144.3,0.03]
[1742952364238,47.57680241,144.31,144.3,0.03]
[1742952365137,47.86112555,144.31,144.3,0.03]
[1742952365726,40.64730241,144.31,144.3,0.03]
[1742952366446,47.57680241,144.31,144.3,0.03]
[1742952367441,47.86112555,144.31,144.3,0.03]
[1742952368227,39.10970241,144.31,144.3,0.03]
[1742952368633,39.39402555,144.31,144.3,0.03]
[1742952371153,39.10970241,144.31,144.3,0.03]
[1742952372849,13.09725352,144.32,144.3,0.03]
[1742952373036,18.64964886,144.32,144.3,0.03]
[1742952373444,13.09725352,144.32,144.3,0.03]
[1742952376535,18.64964886,144.32,144.3,0.03]
[1742952380170,13.09725352,144.32,144.3,0.03]
[1742952395668,13.09725352,144.31,144.3,0.03]
[1742952396166,13.09725352,144.32,144.3,0.03]
[1742952400088,0.063,144.38,144.32,0.28432314]
[1742952400276,0.063,144.38,144.33,0.14216157]
[1742952400476,0.063,144.38,144.36,13.09725352]
[1742952400673,0.063,144.38,144.35,13.09725352]
[1742952402184,0.063,144.38,144.36,6.9271]
[1742952402483,0.063,144.38,144.36,20.02435352]
[1742952404375,0.063,144.38,144.36,25.19487179]
[1742952405684,0.063,144.38,144.37,17.66523934]
[1742952405985,0.063,144.38,144.37,22.83575761]
[1742952406986,0.063,144.38,144.37,17.66523934]
[1742952407488,0.063,144.38,144.37,11.0568459]
[1742952407801,0.063,144.38,144.37,4.1302459]
[1742952409110,0.063,144.38,144.36,20.02425352]
[1742952409415,0.063,144.38,144.36,6.927]
[1742952410518,0.063,144.38,144.35,20.02465352]
[1742952410817,13.16025352,144.38,144.34,6.02]
[1742952411186,13.16025352,144.38,144.33,13.09725352]
[1742952412098,0.063,144.38,144.33,20.02575352]
[1742952412299,0.063,144.38,144.34,20.02495352]
[1742952412834,0.063,144.38,144.34,24.14588963]
[1742952414294,0.063,144.38,144.34,20.02495352]
[1742952414619,0.063,144.38,144.35,13.09725352]
[1742952414917,0.063,144.38,144.35,20.02455352]
[1742952415410,0.063,144.38,144.36,13.09725352]
[1742952417023,0.063,144.38,144.37,6.9266]
[1742952421520,0.063,144.38,144.37,20.02385352]
[1742952422219,0.063,144.38,144.37,13.09725352]
[1742952422402,0.063,144.38,144.36,20.05415352]
[1742952424021,0.063,144.38,144.37,13.09725352]
[1742952425416,0.063,144.38,144.37,20.02385352]
[1742952428010,0.063,144.38,144.37,101.60817666]
[1742952428209,0.063,144.38,144.37,109.31377666]
[1742952431933,0.063,144.38,144.37,109.34377666]
[1742952433712,0.063,144.38,144.37,109.05945352]
[1742952435122,0.063,144.38,144.37,109.34377666]
[1742952439942,0.063,144.38,144.37,101.63817666]
[1742952442117,0.063,144.38,144.37,88.2566]
[1742952442529,0.063,144.38,144.37,101.35385352]
[1742952443831,0.063,144.38,144.37,20.33817666]
[1742952446037,0.063,144.41,144.39,6.2868]
[1742952446243,0.063,144.41,144.4,13.38157666]
[1742952446438,0.063,144.41,144.4,94.68157666]
[1742952447047,0.0001,144.41,144.4,147.07059074]
[1742952447234,0.0001,144.41,144.4,153.99579074]
[1742952447946,0.063,144.48,144.44,0.28432314]
[1742952448248,0.063,144.48,144.47,13.09725352]
[1742952449623,0.063,144.48,144.47,20.30337666]
[1742952451239,0.063,144.48,144.47,101.60337666]
[1742952455655,0.063,144.48,144.47,107.56337666]
[1742952459444,0.063,144.48,144.47,161.33616453]
[1742952459642,0.063,144.53,144.48,0.28432314]
[1742952459844,0.063,144.53,144.52,13.38157666]
[1742952460053,0.063,144.53,144.52,19.34157666]
[1742952461335,0.063,144.53,144.52,26.26097666]
[1742952465459,0.063,144.54,144.53,0.28432314]
[1742952465659,0.063,144.54,144.53,13.38157666]
[1742952465961,0.063,144.6,144.56,0.56864628]
[1742952466168,0.063,144.6,144.59,13.6658998]
[1742952466345,0.063,144.6,144.59,94.9658998]
[1742952466745,0.063,144.6,144.59,101.8819998]
[1742952466957,1.5616,144.72,144.61,0.28432314]
[1742952467259,13.09725352,144.7,144.64,13.09725352]
[1742952467451,13.09725352,144.69,144.64,13.09725352]
[1742952470369,0.03,144.68,144.64,13.09725352]
[1742952470569,13.09725352,144.67,144.62,19.07725352]
[1742952470744,13.09725352,144.66,144.62,5.98]
[1742952471064,13.09725352,144.66,144.61,13.09725352]
[1742952471268,13.09725352,144.67,144.62,13.09725352]
[1742952472277,0.03,144.68,144.64,13.09725352]
[1742952472476,0.03,144.68,144.66,13.09725352]
[1742952474366,0.03,144.68,144.67,13.09725352]
[1742952476581,0.03,144.68,144.67,20.00945352]
[1742952477456,31.74690238,144.74,144.67,20.00945352]
[1742952477663,13.09725352,144.74,144.69,13.09725352]
[1742952478065,13.09725352,144.74,144.68,13.09725352]
[1742952478362,13.09725352,144.72,144.67,13.09725352]
[1742952478677,13.09725352,144.73,144.67,13.09725352]
[1742952479168,13.09725352,144.73,144.68,13.09725352]
[1742952479353,13.09725352,144.73,144.67,20.00935352]
[1742952479553,13.09725352,144.73,144.68,13.09725352]
[1742952479885,13.09725352,144.71,144.66,20.00985352]
[1742952480350,13.09725352,144.72,144.67,13.09725352]
[1742952480681,18.64964886,144.75,144.67,13.09725352]
[1742952480682,13.09725352,144.73,144.67,13.09725352]
[1742952480852,13.09725352,144.72,144.66,20.00985352]
[1742952483148,13.12725352,144.72,144.66,20.00985352]
[1742952483692,13.09725352,144.7,144.65,94.33425352]
[1742952483859,13.09725352,144.69,144.64,20.01085352]
[1742952484058,13.09725352,144.69,144.64,25.97085352]
[1742952484976,13.09725352,144.7,144.64,25.97085352]
[1742952485380,13.09725352,144.67,144.61,6.9151]
[1742952485675,13.09725352,144.64,144.61,6.9151]
[1742952485870,13.09725352,144.63,144.6,12.8754]
[1742952486068,13.09725352,144.64,144.6,12.8754]
[1742952486581,13.09725352,144.64,144.6,5.96]
[1742952486778,13.09725352,144.63,144.6,5.96]
[1742952486974,20.37665785,144.62,144.6,5.96]
[1742952487363,20.37665785,144.63,144.6,5.96]
[1742952487965,20.37665785,144.65,144.6,12.8754]
[1742952490173,20.37665785,144.65,144.6,33.25205785]
[1742952490906,20.37665785,144.65,144.6,12.8754]
[1742952491072,20.37665785,144.64,144.6,12.8754]
[1742952492484,20.37665785,144.63,144.6,5.96]
[1742952493700,20.37665785,144.66,144.6,33.25225785]
[1742952494082,20.37665785,144.65,144.6,12.8756]
[1742952494394,20.37665785,144.64,144.6,12.8756]
[1742952494891,20.37665785,144.64,144.6,12.9386]
[1742952499181,20.37665785,144.64,144.6,6.023]
[1742952499182,20.37665785,144.62,144.6,6.023]
[1742952499877,81.7,144.67,144.61,6.9151]
[1742952500069,20.37665785,144.65,144.61,6.9151]
[1742952500272,20.37665785,144.64,144.61,6.9151]
[1742952500666,20.37665785,144.65,144.61,6.9151]
[1742952502801,20.37665785,144.63,144.6,6.023]
[1742952502994,20.37665785,144.63,144.6,0.063]
[1742952504000,20.37665785,144.62,144.6,0.063]
[1742952504404,20.37665785,144.63,144.6,0.063]
[1742952506598,20.37665785,144.61,144.6,0.063]
[1742952506910,13.0434847,144.61,144.6,0.063]
[1742952511010,31.69313356,144.61,144.6,0.063]
[1742952512306,38.60823356,144.61,144.6,0.063]
[1742952513503,38.8925567,144.61,144.6,0.063]
[1742952513707,20.0,144.57,144.52,6.9823]
[1742952513903,13.0434847,144.54,144.52,6.9823]
[1742952514603,13.0434847,144.55,144.52,6.9823]
[1742952515308,13.0434847,144.55,144.52,0.063]
[1742952515503,18.64964886,144.56,144.52,0.063]
[1742952515809,13.0434847,144.55,144.52,0.063]
[1742952523512,18.64964886,144.59,144.54,13.0434847]
[1742952523705,18.64964886,144.59,144.55,5.96]
[1742952523903,13.0434847,144.58,144.55,5.96]
[1742952524493,13.0434847,144.59,144.55,5.96]
[1742952525447,13.0434847,144.59,144.56,6.9175]
[1742952525720,13.0434847,144.58,144.56,6.9175]
[1742952526895,13.0434847,144.59,144.56,6.9175]
[1742952527717,18.64964886,144.62,144.56,6.9175]
[1742952527909,13.0434847,144.59,144.56,6.9175]
[1742952530829,13.0434847,144.6,144.56,24.2743]
[1742952531028,0.03,144.6,144.57,13.0434847]
[1742952532209,0.03,144.6,144.58,6.9165]
[1742952533329,0.03,144.6,144.58,19.9599847]
[1742952534414,0.03,144.6,144.59,13.0434847]
[1742952535040,0.03,144.6,144.59,21.0395847]
[1742952536435,0.03,144.6,144.59,27.9556847]
[1742952536636,13.0434847,144.66,144.6,0.28432314]
[1742952536825,13.0434847,144.66,144.61,5.94]
[1742952537338,13.0434847,144.66,144.61,18.9834847]
[1742952537711,13.0434847,144.66,144.61,5.94]
[1742952537913,13.0434847,144.65,144.61,5.94]
[1742952538338,13.0434847,144.65,144.62,6.9146]
[1742952539927,13.0434847,144.66,144.62,6.9146]
[1742952540124,13.0434847,144.67,144.62,6.9146]
[1742952541344,13.0434847,144.66,144.62,6.9146]
[1742952542429,13.0434847,144.63,144.61,12.855]
[1742952542749,13.0434847,144.63,144.61,5.94]
[1742952542920,25.59144886,144.68,144.61,12.8551]
[1742952543124,13.0434847,144.66,144.61,25.8985847]
[1742952543537,13.0434847,144.66,144.61,43.1863847]
[1742952543738,18.67964886,144.68,144.62,13.0434847]
[1742952543939,13.0434847,144.67,144.62,13.0434847]
[1742952544147,13.0434847,144.67,144.61,43.1863847]
[1742952545243,13.0434847,144.66,144.61,43.1863847]
[1742952547057,13.0434847,144.66,144.61,30.1429]
[1742952547554,13.0434847,144.67,144.62,13.0434847]
[1742952548237,0.03,144.68,144.62,13.0434847]
[1742952548444,13.0434847,144.67,144.62,13.0434847]
[1742952549330,13.0434847,144.67,144.63,6.9141]
[1742952549529,13.0434847,144.67,144.63,24.1995]
[1742952549957,0.03,144.68,144.63,37.2429847]
[1742952550167,13.0734847,144.68,144.63,24.1995]
[1742952550455,13.0434847,144.67,144.63,24.1995]
[1742952551952,13.0434847,144.66,144.62,6.9145]
[1742952552146,13.0434847,144.65,144.62,6.9145]
[1742952552651,13.0434847,144.63,144.61,5.94]
[1742952553035,13.0434847,144.62,144.59,12.8561]
[1742952553236,13.0434847,144.62,144.59,5.94]
[1742952554046,42.84254886,144.67,144.6,6.9156]
[1742952554047,13.0434847,144.63,144.6,6.9156]
[1742952554454,13.0434847,144.64,144.6,6.9156]
[1742952555738,13.0434847,144.64,144.59,12.856]
[1742952556043,13.0434847,144.64,144.6,0.063]
[1742952556661,13.0434847,144.63,144.6,0.063]
[1742952556859,13.0434847,144.61,144.6,0.063]
[1742952559163,20.38250938,144.61,144.6,0.063]
[1742952560036,18.64964886,144.62,144.6,0.063]
[1742952560240,20.38250938,144.61,144.6,0.063]
[1742952565067,20.38250938,144.62,144.6,0.063]
[1742952565571,20.38250938,144.63,144.6,0.063]
[1742952567770,20.38250938,144.64,144.6,0.063]
[1742952567949,20.38250938,144.64,144.6,5.983]
[1742952568674,20.38250938,144.63,144.61,6.9151]
[1742952568873,20.38250938,144.64,144.61,6.9151]
[1742952569066,18.64964886,144.65,144.61,6.9151]
[1742952569249,20.38250938,144.64,144.61,6.9151]
[1742952569456,20.38250938,144.65,144.61,6.9151]
[1742952569971,20.38250938,144.64,144.6,12.8984]
[1742952572677,20.38250938,144.65,144.6,12.8984]
[1742952573479,20.38250938,144.65,144.6,33.28090938]
[1742952573980,20.38250938,144.65,144.6,12.8984]
[1742952574359,20.38250938,144.64,144.6,12.8984]
[1742952574765,20.38250938,144.62,144.6,5.983]
[1742952574967,20.38250938,144.63,144.6,5.983]
[1742952575676,20.38250938,144.63,144.6,12.8985]
[1742952577062,20.38250938,144.64,144.6,12.8985]
[1742952577672,20.38250938,144.63,144.6,12.8985]
[1742952578860,20.41250938,144.64,144.6,12.8985]
[1742952579980,0.03,144.64,144.6,12.8985]
[1742952580183,20.41250938,144.64,144.6,12.8985]
[1742952580880,13.0687783,144.64,144.6,12.8985]
[1742952581067,13.0387783,144.63,144.6,12.8985]
[1742952583983,13.0387783,144.61,144.6,5.983]
[1742952584183,13.0387783,144.61,144.6,0.063]
[1742952587989,19.9538783,144.61,144.6,0.063]
[1742952588291,38.60352716,144.61,144.6,0.063]
[1742952592479,38.8878503,144.61,144.6,0.063]
[1742952593492,39.17217344,144.61,144.6,0.063]
[1742952594797,20.0,144.58,144.56,0.063]
[1742952594980,13.0387783,144.57,144.56,0.063]
[1742952605779,11.96424347,144.57,144.56,0.063]
[1742952606087,18.88124347,144.57,144.56,0.063]
[1742952608201,11.96424347,144.57,144.56,0.063]
[1742952610203,18.88124347,144.57,144.56,0.063]
[1742952612608,11.96424347,144.57,144.56,0.063]
[1742952613205,26.9166,144.58,144.56,0.063]
[1742952613206,31.96424347,144.58,144.56,0.063]
[1742952613601,20.0,144.58,144.56,0.063]
[1742952613811,11.96424347,144.59,144.56,0.063]
[1742952614329,0.03,144.6,144.57,17.86424347]
[1742952614796,0.03,144.6,144.58,6.9165]
[1742952618528,0.03,144.6,144.57,5.9]
[1742952618812,0.03,144.6,144.56,0.063]
[1742952618813,11.96424347,144.58,144.56,0.063]
[1742952619015,11.96424347,144.57,144.56,0.063]
[1742952619314,30.61389233,144.57,144.56,0.063]
[1742952620910,11.96424347,144.57,144.56,0.063]
[1742952623034,18.88124347,144.57,144.56,0.063]
[1742952623220,11.96424347,144.57,144.56,0.063]
[1742952624720,31.96424347,144.58,144.56,0.063]
[1742952625528,11.96424347,144.57,144.56,0.063]
[1742952629329,37.53089233,144.57,144.56,0.063]
[1742952630729,119.51521547,144.57,144.56,0.063]
[1742952632438,112.31389233,144.57,144.56,0.063]
[1742952632806,119.51521547,144.57,144.56,0.063]
[1742952633418,112.59821547,144.57,144.56,0.063]
[1742952633612,112.31389233,144.57,144.56,0.063]
[1742952634420,30.61389233,144.57,144.56,0.063]
[1742952638720,11.96424347,144.58,144.56,0.063]
[1742952638926,81.73,144.6,144.56,0.063]
[1742952638927,11.99424347,144.6,144.56,0.063]
[1742952639143,0.03,144.6,144.56,12.02724347]
[1742952639627,0.03,144.6,144.57,11.96424347]
[1742952640622,0.03,144.6,144.56,6.9805]
[1742952640827,11.99424347,144.6,144.56,6.9805]
[1742952641023,11.96424347,144.59,144.56,6.9805]
[1742952641411,11.96424347,144.59,144.56,0.063]
[1742952642338,11.96061101,144.59,144.56,0.063]
[1742952643132,11.99061101,144.6,144.56,0.063]
[1742952643935,11.96061101,144.59,144.56,0.063]
[1742952647116,11.9894875,144.6,144.56,0.063]
[1742952648250,11.9594875,144.59,144.56,0.063]
[1742952650819,11.9594875,144.57,144.56,0.063]
[1742952651732,11.9594875,144.58,144.56,0.063]
[1742952651942,11.9594875,144.59,144.56,0.063]
[1742952653737,0.03,144.6,144.57,5.9]
[1742952653944,0.03,144.6,144.58,11.9594875]
[1742952654145,0.03,144.6,144.57,17.8594875]
[1742952655744,0.03,144.6,144.57,5.9]
[1742952656347,0.03,144.6,144.58,6.9165]
[1742952656923,0.03,144.6,144.59,5.9]
[1742952657742,0.03,144.6,144.59,12.8161]
[1742952660929,0.03,144.6,144.59,25.05991064]
[1742952661139,0.03,144.6,144.59,33.12551064]
[1742952661335,0.03,144.64,144.6,0.28432314]
[1742952661537,0.03,144.64,144.63,12.24381064]
[1742952662130,0.03,144.64,144.63,19.15791064]
[1742952664324,0.03,144.64,144.63,18.8735875]
[1742952664531,0.03,144.64,144.62,18.8739875]
[1742952664956,0.03,144.64,144.63,11.9594875]
[1742952666638,0.03,144.64,144.63,18.8735875]
[1742952667953,0.03,144.64,144.63,6.0]
[1742952668142,11.9894875,144.64,144.59,20.0250875]
[1742952668336,11.9894875,144.64,144.6,6.02]
[1742952669058,11.9594875,144.63,144.6,6.02]
[1742952669835,11.9594875,144.62,144.6,6.02]
[1742952670049,11.9594875,144.61,144.6,6.02]
[1742952670955,11.9594875,144.62,144.6,6.02]
[1742952671456,11.9594875,144.62,144.57,6.9169]
[1742952671667,11.9594875,144.62,144.57,12.9569]
[1742952671843,11.9594875,144.61,144.57,12.9569]
[1742952672036,11.9594875,144.58,144.56,0.063]
[1742952672437,11.9594875,144.57,144.56,0.063]
[1742952672657,11.9594875,144.58,144.56,0.063]
[1742952673265,11.9594875,144.59,144.56,0.063]
[1742952673735,11.9594875,144.58,144.56,0.063]
[1742952674146,11.9594875,144.57,144.56,0.063]
[1742952674539,11.9594875,144.58,144.56,0.063]
[1742952674952,18.69109856,144.58,144.56,0.063]
[1742952675537,18.69109856,144.6,144.56,0.063]
[1742952675942,18.69109856,144.59,144.56,0.063]
[1742952677552,18.69109856,144.6,144.56,0.063]
[1742952678162,18.69109856,144.59,144.56,0.063]
[1742952678850,18.69109856,144.58,144.56,0.063]
[1742952680567,18.69109856,144.57,144.56,0.063]
[1742952681070,18.69109856,144.58,144.56,0.063]
[1742952683086,18.69109856,144.59,144.56,0.063]
[1742952683372,18.69109856,144.6,144.56,0.063]
[1742952683764,18.69109856,144.58,144.56,0.063]
[1742952684166,25.56444886,144.62,144.56,0.063]
[1742952684167,18.69109856,144.57,144.56,0.063]
[1742952685163,37.34074742,144.57,144.56,0.063]
[1742952685471,46.06317056,144.57,144.56,0.063]
[1742952685652,46.3474937,144.57,144.56,0.063]
[1742952686568,20.0,144.54,144.52,0.063]
[1742952686750,37.62507056,144.53,144.52,0.063]
[1742952687156,37.34074742,144.53,144.52,0.063]
[1742952687771,18.69109856,144.53,144.52,0.063]
[1742952691263,81.7,144.56,144.52,0.063]
[1742952691577,20.17074886,144.57,144.52,0.063]
[1742952691578,18.64964886,144.59,144.52,6.083]
[1742952691766,18.69109856,144.56,144.52,6.083]
[1742952692675,18.69109856,144.57,144.52,6.083]
[1742952693366,18.69109856,144.57,144.53,6.9189]
[1742952695559,18.64964886,144.59,144.53,6.9189]
[1742952695771,18.69109856,144.56,144.53,6.9189]
[1742952695973,18.69109856,144.55,144.52,13.0023]
[1742952696278,18.69109856,144.54,144.52,13.0023]
[1742952696668,18.69109856,144.54,144.53,0.063]
[1742952696984,18.69109856,144.55,144.53,0.063]
[1742952697583,18.69109856,144.54,144.53,0.063]
[1742952697759,18.69109856,144.55,144.53,0.063]
[1742952698482,0.28432314,144.58,144.53,0.063]
[1742952698662,18.69109856,144.56,144.53,0.063]
[1742952698981,18.69109856,144.58,144.53,0.063]
[1742952699484,18.69109856,144.57,144.53,0.063]
[1742952699670,18.64964886,144.59,144.53,0.063]
[1742952699862,18.69109856,144.57,144.53,0.063]
[1742952700073,18.69109856,144.56,144.53,0.063]
[1742952701359,18.69109856,144.54,144.53,0.063]
[1742952702080,44.25924742,144.54,144.53,0.063]
[1742952702284,62.95034598,144.54,144.53,0.063]
[1742952702474,18.64964886,144.53,144.52,0.063]
[1742952702678,37.34074742,144.53,144.52,0.063]
[1742952702874,20.0,144.5,144.45,0.063]
[1742952703073,18.69109856,144.47,144.45,0.063]
[1742952703466,18.69109856,144.47,144.45,6.9857]
[1742952704689,18.69109856,144.46,144.45,0.063]
[1742952705401,18.69109856,144.47,144.45,0.063]
[1742952705870,18.69109856,144.46,144.45,0.063]
[1742952706987,18.69109856,144.47,144.45,0.063]
[1742952707184,18.69109856,144.49,144.45,0.063]
[1742952707566,18.69109856,144.48,144.45,0.063]
[1742952707771,18.69109856,144.49,144.45,0.063]
[1742952708783,18.69109856,144.46,144.45,0.063]
[1742952711473,18.69109856,144.48,144.45,0.063]
[1742952712796,18.69109856,144.49,144.45,0.063]
[1742952712982,18.69109856,144.48,144.45,0.063]
[1742952716294,38.69109856,144.5,144.46,6.02]
[1742952716795,18.64964886,144.53,144.46,24.71109856]
[1742952717000,18.69109856,144.51,144.46,6.02]
[1742952717171,18.69109856,144.5,144.46,6.02]
[1742952717596,18.64964886,144.53,144.46,6.02]
[1742952717597,18.69109856,144.51,144.46,6.02]
[1742952717796,18.69109856,144.51,144.46,24.71109856]
[1742952717971,18.64964886,144.53,144.46,24.71109856]
[1742952718179,18.69109856,144.53,144.48,42.91579856]
[1742952718685,18.69109856,144.54,144.48,42.91579856]
[1742952719184,18.72109856,144.56,144.51,18.69109856]
[1742952719489,18.72109856,144.56,144.52,6.02]
[1742952720304,18.72109856,144.56,144.53,6.9189]
[1742952720703,18.69109856,144.55,144.53,6.9189]
[1742952721073,18.72109856,144.56,144.53,6.9189]
[1742952721275,0.03,144.56,144.53,25.60999856]
[1742952721491,0.03,144.56,144.55,18.69109856]
[1742952721886,0.03,144.56,144.54,18.69109856]
[1742952722084,0.03,144.56,144.53,42.90739856]
[1742952722286,0.03,144.56,144.53,24.2163]
[1742952722494,0.03,144.56,144.53,42.90739856]
[1742952722797,0.03,144.56,144.54,18.69109856]
[1742952723003,0.03,144.56,144.53,42.90739856]
[1742952723383,0.03,144.56,144.53,6.9189]
[1742952723983,0.03,144.56,144.53,12.9389]
[1742952730688,38.64964886,144.55,144.54,5.13776128]
[1742952730889,57.34074742,144.55,144.54,5.13776128]
[1742952731285,64.25874742,144.55,144.54,5.13776128]
[1742952731496,64.25874742,144.55,144.45,31.78464567]
[1742952731497,18.64964886,144.54,144.45,31.78464567]
[1742952731699,18.69109856,144.49,144.45,17.89604567]
[1742952731994,18.69109856,144.49,144.45,6.9853]
[1742952732192,119.04074742,144.54,144.45,6.9853]
[1742952732396,18.69109856,144.48,144.45,6.9853]
[1742952733187,6.92,144.51,144.45,0.063]
[1742952733188,18.69109856,144.47,144.45,0.063]
[1742952734008,6.9209,144.49,144.45,0.063]
[1742952734009,18.69109856,144.46,144.45,0.063]
[1742952734591,18.69109856,144.48,144.45,0.063]
[1742952735507,18.69109856,144.46,144.45,0.063]
[1742952736015,18.69109856,144.47,144.45,0.063]
[1742952736815,18.69109856,144.48,144.45,0.063]
[1742952737709,18.64964886,144.51,144.45,0.063]
[1742952737903,18.69109856,144.48,144.45,0.063]
[1742952739017,18.69109856,144.49,144.45,0.063]
[1742952739515,18.69109856,144.48,144.45,0.063]
[1742952740293,18.64964886,144.51,144.45,0.063]
[1742952740494,18.69109856,144.49,144.45,0.063]
[1742952743699,18.69109856,144.48,144.45,0.063]
[1742952744816,81.73,144.52,144.45,0.063]
[1742952744817,18.69109856,144.46,144.45,0.063]
[1742952747527,18.69109856,144.47,144.45,0.063]
[1742952747905,18.69109856,144.49,144.45,0.063]
[1742952748226,18.69109856,144.48,144.45,0.063]
[1742952749316,18.69109856,144.47,144.45,0.063]
[1742952749514,18.69109856,144.46,144.45,0.063]
[1742952750117,18.69109856,144.47,144.45,0.063]
[1742952751128,18.69109856,144.46,144.45,0.063]
[1742952760844,13.2388,144.53,144.45,0.063]
[1742952761027,18.69109856,144.49,144.45,0.063]
[1742952761228,18.69109856,144.49,144.45,6.083]
[1742952761529,18.69109856,144.48,144.45,6.083]
[1742952762250,18.69109856,144.48,144.46,6.9223]
[1742952763642,18.69109856,144.5,144.46,6.9223]
[1742952764046,18.69109856,144.51,144.46,42.91919856]
[1742952764237,18.72109856,144.52,144.46,42.91919856]
[1742952765662,18.72109856,144.52,144.47,18.69109856]
[1742952766973,18.72109856,144.52,144.48,24.2247]
[1742952769683,0.03,144.52,144.48,42.91579856]
[1742952769859,0.03,144.52,144.5,18.69109856]
[1742952770058,0.03,144.52,144.51,6.0]
[1742952771672,0.03,144.52,144.51,12.9199]
[1742952771979,0.03,144.56,144.54,0.28432314]
[1742952772160,0.03,144.6,144.56,0.28432314]
[1742952772475,0.03,144.6,144.58,18.69109856]
[1742952773685,0.03,144.6,144.59,6.9161]
[1742952775561,0.03,144.6,144.59,7.20042314]
[1742952775763,0.03,144.6,144.59,25.8915217]
[1742952776287,0.03,144.6,144.59,107.1285217]
[1742952776968,0.03,144.6,144.59,108.51110225]
[1742952778174,0.03,144.6,144.59,107.1285217]
[1742952778771,0.03,144.6,144.59,88.43742314]
[1742952778968,0.03,144.6,144.59,94.45742314]
[1742952780184,0.03,144.6,144.59,12.9361]
[1742952780369,18.72109856,144.6,144.57,87.237]
[1742952780686,18.69109856,144.59,144.57,87.237]
[1742952780886,18.69109856,144.59,144.57,6.0]
[1742952781465,18.69109856,144.59,144.57,12.917]
[1742952781865,0.03,144.6,144.57,12.917]
[1742952782280,0.03,144.6,144.58,18.9754217]
[1742952782468,0.03,144.6,144.57,94.154]
[1742952782791,18.69109856,144.58,144.5,6.9204]
[1742952782966,18.69109856,144.52,144.5,7.20472314]
[1742952783167,18.69109856,144.54,144.5,7.20472314]
[1742952783473,18.69109856,144.56,144.51,18.69109856]
[1742952783801,18.69109856,144.55,144.51,81.237]
[1742952784280,18.69109856,144.56,144.53,0.28432314]
[1742952784587,18.69109856,144.55,144.53,6.02]
[1742952785677,8.4491,144.58,144.51,6.9198]
[1742952785678,18.69109856,144.54,144.51,6.9198]
[1742952785987,18.69109856,144.53,144.51,6.9198]
[1742952786375,18.69109856,144.53,144.5,6.9204]
[1742952786569,6.9173,144.57,144.5,6.9204]
[1742952786770,18.69109856,144.53,144.5,6.9204]
[1742952786987,18.69109856,144.52,144.5,6.9204]
[1742952787185,18.69109856,144.51,144.49,12.9407]
[1742952787666,18.69109856,144.5,144.47,87.34]
[1742952787868,18.69109856,144.5,144.48,6.9212]
[1742952788470,18.69109856,144.49,144.47,0.063]
[1742952788685,18.69109856,144.48,144.47,0.063]
[1742952790388,37.34074742,144.48,144.47,0.063]
[1742952791374,43.88204742,144.48,144.47,0.063]